bitfinex/quotes_ETHUSD_20220123
["timestamp","ask_amount","ask_price","bid_price","bid_amount"]
[1642959454325,0.16763853,2442.1,2441.2,1.42120822]
[1642959454625,0.16763853,2442.1,2441.3,3.85371816]
[1642959454826,0.16763853,2442.1,2441.3,3.85493624]
[1642959454827,0.00383853,2442.1,2441.3,3.85493624]
[1642959455030,0.00383853,2442.1,2441.7,1.5]
[1642959455228,0.00383853,2442.1,2441.7,2.97802501]
[1642959455426,0.00383853,2442.1,2441.7,3.27802501]
[1642959455629,0.00383853,2442.1,2441.7,3.57802501]
[1642959456430,0.00383853,2442.1,2441.8,5.06123158]
[1642959456731,0.00383853,2442.1,2441.9,0.1638]
[1642959456927,0.00383853,2442.1,2442.0,8.491]
[1642959457127,0.00383853,2442.1,2442.0,9.49221806]
[1642959457381,0.0001,2443.0,2442.4,1.2886873]
[1642959457586,0.0001,2443.0,2442.2,4.99845694]
[1642959457778,0.0001,2443.0,2442.2,5.29845694]
[1642959457978,0.0001,2443.0,2442.2,7.24936681]
[1642959458978,0.0001,2443.0,2442.3,1.5]
[1642959459181,0.1637,2442.9,2442.3,1.5]
[1642959460186,0.1637,2442.9,2442.1,0.00121801]
[1642959460380,0.0001,2443.0,2442.3,1.22770485]
[1642959461634,0.0001,2443.0,2442.4,0.45090987]
[1642959461834,0.0001,2443.0,2442.4,0.3]
[1642959462032,0.0001,2443.0,2442.7,1.5]
[1642959462332,0.0001,2443.0,2442.7,1.418]
[1642959462532,0.00364141,2442.9,2442.7,2.018]
[1642959463135,0.00364141,2442.9,2442.4,1.15090987]
[1642959463333,0.00364141,2442.9,2442.4,0.75090987]
[1642959463532,0.00364141,2442.9,2442.4,1.45090987]
[1642959464533,0.00364141,2442.9,2442.4,0.45090987]
[1642959465376,0.00364141,2442.9,2442.4,0.36890987]
[1642959465577,0.00364141,2442.9,2442.4,3.91287203]
[1642959465976,0.00364141,2442.9,2442.5,1.0]
[1642959466178,0.00364141,2442.9,2442.8,1.5495424]
[1642959466578,0.00364141,2442.9,2442.8,1.8495424]
[1642959467183,0.00364141,2442.9,2442.8,0.6]
[1642959467380,0.00364141,2442.9,2442.8,0.3]
[1642959467580,0.00364141,2442.9,2442.6,2.1]
[1642959468182,0.00364141,2442.9,2442.6,3.53710435]
[1642959468634,0.00364141,2442.9,2442.7,4.74707118]
[1642959468837,0.00364141,2442.9,2442.8,9.12455439]
[1642959469037,0.00364141,2442.9,2442.8,12.97925439]
[1642959469937,0.00364141,2442.9,2442.8,4.00560987]
[1642959470339,0.00364141,2442.9,2442.8,7.74065309]
[1642959470939,0.00364141,2442.9,2442.8,4.00560987]
[1642959471137,0.00364141,2442.9,2442.8,3.84190987]
[1642959471340,0.0001,2443.0,2442.9,7.9]
[1642959471541,0.0001,2443.0,2442.9,38.5761289]
[1642959471739,0.04,2443.6,2443.0,7.4]
[1642959471941,0.04,2443.6,2443.2,1.0237245]
[1642959472142,0.04,2443.6,2443.3,0.4637]
[1642959472381,0.04,2443.6,2443.5,10.2579615]
[1642959472580,0.04,2443.6,2443.5,11.8579615]
[1642959473380,0.04,2443.6,2443.5,9.8579615]
[1642959474183,0.04,2443.6,2443.5,11.3579615]
[1642959476329,0.04,2443.6,2443.5,11.20705163]
[1642959476525,0.04,2443.6,2443.5,15.10597662]
[1642959476726,0.04,2443.6,2443.5,39.76346056]
[1642959477125,0.1637,2444.4,2443.6,5.35]
[1642959477327,0.1635,2444.5,2443.7,3.89000666]
[1642959477529,0.1635,2444.5,2443.7,5.19000666]
[1642959478729,0.1635,2444.5,2443.8,1.44148]
[1642959478930,0.04,2444.6,2443.8,1.74148]
[1642959479129,0.04,2444.6,2443.9,1.5]
[1642959479329,0.04,2444.6,2443.9,1.8]
[1642959479529,0.04,2444.6,2443.9,2.8]
[1642959480178,0.04,2444.6,2444.0,1.5]
[1642959480382,0.04,2444.6,2444.0,1.8]
[1642959480582,0.04,2444.6,2444.0,2.8]
[1642959480781,0.04,2444.6,2444.0,1.8]
[1642959480983,0.04,2444.6,2444.1,1.0]
[1642959481181,0.04,2444.6,2444.0,0.3]
[1642959481581,0.04,2444.6,2443.9,0.3]
[1642959482080,0.04,2444.6,2443.9,1.3]
[1642959482681,0.00340822,2444.5,2443.9,1.3]
[1642959483182,0.00340822,2444.5,2443.9,29.30630919]
[1642959483385,0.00340822,2444.5,2444.0,0.591]
[1642959484133,0.00340822,2444.5,2444.4,1.5]
[1642959484334,0.00340822,2444.5,2444.4,0.86433736]
[1642959484736,7.61690822,2444.5,2444.4,0.86433736]
[1642959484938,7.62952026,2444.5,2444.4,0.86433736]
[1642959485134,7.62952026,2444.5,2444.0,2.0]
[1642959485338,0.17952026,2444.5,2444.0,2.0]
[1642959485535,0.17952026,2444.5,2443.4,4.89205937]
[1642959485838,0.16690822,2444.5,2443.5,0.15090987]
[1642959486034,0.00340822,2444.5,2443.6,1.5]
[1642959486435,1.49112935,2444.2,2443.6,4.1]
[1642959486638,1.49112935,2444.2,2443.6,2.257]
[1642959487036,0.17573618,2444.4,2443.6,2.0]
[1642959487479,0.17573618,2444.4,2443.4,1.00121737]
[1642959487680,1.15740816,2443.7,2443.4,0.00121735]
[1642959488083,2.75,2443.6,2443.0,0.07012722]
[1642959488283,3.75449437,2443.7,2443.0,0.07134457]
[1642959488885,2.30520816,2443.7,2443.0,0.07134457]
[1642959489483,1.1478,2443.7,2443.0,0.07134457]
[1642959489683,0.01264011,2443.8,2443.0,0.07134457]
[1642959490382,0.01264011,2443.8,2442.8,2.0]
[1642959490581,0.01264011,2443.8,2442.8,2.00121735]
[1642959490783,1.3559948,2443.5,2442.8,2.00121735]
[1642959491440,5.85,2443.4,2442.5,1.91921735]
[1642959491632,9.67080864,2443.4,2442.5,1.9204347]
[1642959491832,0.1637,2443.4,2442.5,1.9204347]
[1642959492241,1.09694544,2443.1,2442.5,1.8384347]
[1642959492436,1.0159,2443.4,2442.5,0.00121735]
[1642959492635,0.16706905,2443.4,2442.5,0.00121735]
[1642959493635,1.10888523,2443.2,2442.5,0.00121735]
[1642959494144,0.00336905,2443.4,2442.5,0.00121735]
[1642959494988,0.00336905,2443.4,2442.7,1.3410705]
[1642959495191,0.00336905,2443.4,2442.7,1.94228785]
[1642959495388,0.00336905,2443.4,2442.7,1.86028785]
[1642959497401,0.00336905,2443.4,2442.7,0.51921735]
[1642959497699,1.50702363,2443.6,2442.7,0.51921735]
[1642959497999,1.50702363,2443.6,2442.8,0.3]
[1642959498298,1.50702363,2443.6,2442.8,0.00121735]
[1642959500143,0.16706549,2443.6,2442.8,0.00121735]
[1642959502076,1.63445516,2443.6,2442.8,0.00121735]
[1642959503684,5.36288975,2443.6,2442.8,0.00121735]
[1642959503883,5.36288975,2443.6,2442.8,0.30121735]
[1642959504082,1.1519781,2443.2,2442.8,0.00121735]
[1642959505483,1.16820258,2443.0,2442.8,0.00121735]
[1642959506124,1.16820258,2443.0,2442.4,1.3]
[1642959506531,1.16820258,2443.0,2442.2,9.803]
[1642959506730,1.16820258,2443.0,2442.2,7.43]
[1642959506931,3.63014805,2442.9,2442.2,7.43]
[1642959507132,0.1637,2442.9,2442.2,7.43]
[1642959507533,0.16705124,2442.9,2442.2,7.43]
[1642959507733,0.2013095,2442.9,2442.2,7.348]
[1642959507933,1.230423,2442.6,2442.2,7.348]
[1642959508132,1.230423,2442.6,2441.8,3.6722]
[1642959508133,1.230423,2442.6,2441.9,7.348]
[1642959508335,1.230423,2442.6,2441.8,7.43]
[1642959508537,1.29609092,2442.4,2441.8,7.43]
[1642959508737,0.1637,2442.3,2441.8,7.43]
[1642959508934,0.1637,2442.5,2441.8,7.43]
[1642959509790,1.28528584,2442.2,2441.8,7.43]
[1642959510587,1.28528584,2442.2,2441.8,5.585]
[1642959510790,1.28528584,2442.2,2441.5,7.43]
[1642959510989,3.56290982,2442.1,2441.5,0.3]
[1642959511388,1.28528584,2442.2,2441.4,7.43]
[1642959511588,0.1638,2442.1,2441.4,7.43]
[1642959512597,0.00331915,2442.0,2441.4,7.43]
[1642959512793,0.00331915,2442.0,2441.5,0.3]
[1642959512995,0.03760199,2442.0,2441.5,0.3]
[1642959515829,1.09960547,2441.8,2441.5,0.3]
[1642959516636,1.09960547,2441.8,2441.4,7.43]
[1642959516832,1.09960547,2441.8,2441.1,7.43]
[1642959517035,1.09960547,2441.8,2441.1,8.43]
[1642959517498,1.09960547,2441.8,2441.1,8.348]
[1642959517798,0.03742179,2441.7,2441.1,1.0]
[1642959517993,0.03742179,2441.7,2441.0,7.43]
[1642959518196,0.03742179,2441.7,2441.0,8.1938]
[1642959519199,0.03742179,2441.7,2441.1,1.0]
[1642959520308,0.03742179,2441.7,2441.2,24.20203474]
[1642959520497,0.03742179,2441.7,2441.3,0.591]
[1642959520894,0.03742179,2441.7,2441.3,0.891]
[1642959521129,0.03742179,2441.7,2441.3,1.191]
[1642959521529,0.03742179,2441.7,2441.3,2.191]
[1642959521730,0.03742179,2441.7,2441.4,1.24610918]
[1642959521931,0.03742179,2441.7,2441.4,2.13710918]
[1642959522131,0.03742179,2441.7,2441.4,3.13710918]
[1642959522537,0.03742179,2441.7,2441.5,1.0]
[1642959522738,0.02623904,2441.7,2441.5,1.0]
[1642959522941,0.02623904,2441.7,2441.4,2.13710918]
[1642959523940,0.02623904,2441.7,2441.4,0.891]
[1642959527803,0.03759132,2441.7,2441.4,0.891]
[1642959537534,0.03759132,2441.7,2441.6,4.78806066]
[1642959537737,0.03759132,2441.7,2441.6,5.37906066]
[1642959537934,0.03759132,2441.7,2441.6,6.67906066]
[1642959538133,0.03759132,2441.7,2441.6,6.97906066]
[1642959539780,0.03625696,2441.7,2441.6,6.97906066]
[1642959540382,0.03625696,2441.7,2441.6,3.42906066]
[1642959541482,0.03625696,2441.7,2441.6,5.42906066]
[1642959541682,0.03625696,2441.7,2441.6,4.42906066]
[1642959541883,0.03625696,2441.7,2441.6,5.42906066]
[1642959542085,0.1638,2442.7,2441.8,23.97]
[1642959542284,0.1638,2442.7,2442.2,0.01282285]
[1642959542487,0.1638,2442.7,2442.3,0.7547]
[1642959542688,0.1638,2442.7,2442.4,3.91746703]
[1642959542886,4.8554,2443.6,2442.6,7.4]
[1642959543086,6.27180241,2443.6,2442.7,2.35269079]
[1642959543286,6.27180241,2443.6,2442.7,3.24369079]
[1642959543932,1.56200128,2443.5,2442.7,1.891]
[1642959544129,1.56200128,2443.5,2442.7,0.591]
[1642959544329,1.7668063,2443.5,2442.3,7.43]
[1642959544529,0.1637,2443.4,2442.3,9.43]
[1642959544831,1.19699889,2443.0,2442.3,9.43]
[1642959545531,0.1637,2443.4,2442.3,7.43]
[1642959545733,0.1637,2443.4,2442.4,1.891]
[1642959546038,0.1637,2443.4,2442.4,5.33088592]
[1642959546231,0.1637,2443.8,2442.5,24.03808649]
[1642959546432,1.1369,2444.1,2443.4,1.17568353]
[1642959546631,1.1369,2444.1,2443.1,0.591]
[1642959546831,1.1369,2444.1,2443.4,0.3]
[1642959547038,1.1369,2444.1,2443.4,0.6]
[1642959547278,1.1369,2444.1,2443.4,0.3]
[1642959547884,1.42290566,2443.9,2443.4,0.3]
[1642959549187,1.42290566,2443.9,2443.4,0.27000001]
[1642959551138,0.1635,2444.0,2443.4,3.55346705]
[1642959551337,0.04,2444.2,2443.6,1.0]
[1642959551635,0.04,2444.2,2443.6,0.3]
[1642959552031,1.12986049,2444.2,2443.3,1.0]
[1642959552636,0.00317652,2443.8,2443.3,1.0]
[1642959553036,0.00317652,2443.8,2443.3,1.3]
[1642959554043,0.00317652,2443.8,2443.3,4.85379589]
[1642959554886,0.00317652,2443.8,2443.3,1.3]
[1642959555088,0.00317652,2443.8,2443.3,3.85517618]
[1642959555290,0.00317652,2443.8,2443.4,1.3]
[1642959557093,0.00317652,2443.8,2443.5,3.69887326]
[1642959557297,0.00317652,2443.8,2443.5,4.58987326]
[1642959557493,0.00317652,2443.8,2443.6,1.3]
[1642959557694,0.04317296,2444.2,2443.6,1.6]
[1642959558093,0.04317296,2444.2,2443.7,3.5421139]
[1642959558545,0.04317296,2444.2,2443.8,1.3]
[1642959558739,0.04317296,2444.2,2443.9,27.98288077]
[1642959558949,7.296e-05,2444.2,2443.9,27.98288077]
[1642959559151,7.296e-05,2444.2,2444.0,1.591]
[1642959559341,0.04,2444.5,2444.1,3.65]
[1642959559543,0.04,2444.5,2444.2,1.0]
[1642959559742,0.04,2444.5,2444.3,3.59512619]
[1642959559942,0.04,2444.5,2444.4,23.97]
[1642959560143,0.04,2444.5,2444.4,25.57]
[1642959560344,0.04,2444.6,2444.5,28.67]
[1642959560542,0.04,2445.4,2444.5,29.67]
[1642959560746,0.04,2445.4,2444.7,1.17277294]
[1642959560942,0.04,2445.4,2444.8,0.1635]
[1642959561143,0.04,2445.4,2444.8,1.0]
[1642959561548,0.04,2445.4,2444.7,2.191]
[1642959561745,0.04,2445.4,2444.8,3.52494248]
[1642959561948,0.04,2445.4,2444.7,2.191]
[1642959562143,0.04,2445.4,2444.7,3.71639192]
[1642959562583,0.0030316,2445.3,2444.7,3.71639192]
[1642959562883,0.0030316,2445.3,2444.7,2.191]
[1642959563084,0.0030316,2445.3,2444.7,1.191]
[1642959568246,0.0030316,2445.3,2444.8,1.0230596]
[1642959568544,0.0030316,2445.3,2444.9,2.0]
[1642959568744,0.0030316,2445.3,2444.9,2.3]
[1642959568942,0.0030316,2445.3,2444.9,3.3]
[1642959569143,0.0030316,2445.3,2444.9,4.42690608]
[1642959569355,0.0030316,2445.3,2444.9,3.42690608]
[1642959569542,0.0030316,2445.3,2445.0,1.3]
[1642959569797,0.0030316,2445.3,2445.0,2.5037]
[1642959569996,0.0030316,2445.3,2445.0,1.5037]
[1642959570198,0.0030316,2445.3,2445.1,1.0]
[1642959570596,0.0030316,2445.3,2445.0,0.3]
[1642959570800,0.0030316,2445.3,2444.9,1.72690608]
[1642959570997,0.0030316,2445.3,2444.9,2.72690608]
[1642959571503,0.0030316,2445.3,2444.9,26.69690608]
[1642959571700,0.0030316,2445.3,2444.9,27.71977608]
[1642959571905,0.0030316,2445.3,2445.0,26.6066936]
[1642959572101,0.04,2445.9,2445.5,1.19961433]
[1642959572299,0.04,2445.9,2445.6,0.591]
[1642959572504,0.04,2445.9,2445.6,0.891]
[1642959573541,0.04,2445.9,2445.6,1.0545]
[1642959573735,0.04,2445.9,2445.6,0.891]
[1642959573933,1.14205889,2445.8,2445.1,2.7545]
[1642959574134,1.14205889,2445.8,2445.3,0.3]
[1642959574336,1.14205889,2445.8,2445.2,1.3]
[1642959574537,1.14205889,2445.8,2445.1,2.891]
[1642959574538,1.14205889,2445.8,2445.1,0.591]
[1642959574735,1.14205889,2445.8,2444.8,4.5501]
[1642959574937,1.48646166,2445.7,2444.8,0.591]
[1642959575236,0.1635,2445.8,2444.6,3.8731]
[1642959575433,0.1635,2445.8,2444.6,3.7096]
[1642959575836,0.1635,2445.8,2444.6,4.0096]
[1642959576139,0.1635,2445.8,2444.7,1.0]
[1642959576337,0.1635,2445.8,2444.7,3.41860878]
[1642959576538,0.1635,2445.8,2444.7,4.00960878]
[1642959576737,0.1635,2445.8,2444.7,3.92760878]
[1642959576944,0.1635,2445.8,2444.7,3.84560878]
[1642959577145,0.1635,2445.8,2444.8,1.03565225]
[1642959577391,0.1635,2445.8,2445.5,1.13383213]
[1642959577589,0.04,2445.9,2445.5,3.04759333]
[1642959577789,0.00285635,2445.7,2445.5,3.04759333]
[1642959577991,0.00285635,2445.7,2445.6,1.3]
[1642959578390,0.00285635,2445.7,2445.6,0.3]
[1642959578591,0.00285635,2445.7,2445.5,1.191]
[1642959578792,0.00285635,2445.7,2445.5,2.2137574]
[1642959578993,0.04,2445.9,2445.7,1.19257561]
[1642959579393,0.04,2445.9,2445.8,3.47189934]
[1642959579590,0.04,2445.9,2445.8,0.6]
[1642959579796,0.04,2445.9,2445.8,5.08257273]
[1642959579991,0.04,2445.9,2445.8,1.6]
[1642959580391,0.04,2445.9,2445.8,0.6]
[1642959580593,0.04,2445.9,2445.7,1.6]
[1642959581048,0.04,2445.9,2445.5,1.191]
[1642959581239,0.04,2445.9,2445.5,0.891]
[1642959581842,0.04,2445.9,2445.5,1.891]
[1642959582241,0.5,2445.8,2445.5,1.891]
[1642959582643,0.50268138,2445.8,2445.5,0.891]
[1642959582845,0.50268138,2445.8,2445.5,1.891]
[1642959583045,0.50268138,2445.8,2445.5,0.891]
[1642959584546,0.50268138,2445.8,2445.5,1.0545]
[1642959584779,0.50268138,2445.8,2445.5,2.47015454]
[1642959585182,0.50268138,2445.8,2445.5,3.47015454]
[1642959587492,0.50268138,2445.8,2445.5,2.0545]
[1642959587887,0.50268138,2445.8,2445.5,1.0545]
[1642959588536,0.50268138,2445.8,2445.6,1.14113176]
[1642959588938,0.50268138,2445.8,2445.7,0.3]
[1642959589537,0.50268138,2445.8,2445.7,1.3]
[1642959589740,0.50268138,2445.8,2445.4,1.0227708]
[1642959589942,0.50268138,2445.8,2445.3,0.7545]
[1642959590149,0.50268138,2445.8,2445.3,24.561]
[1642959590442,0.50268138,2445.8,2445.4,0.1635]
[1642959590842,0.50268138,2445.8,2445.4,1.33727671]
[1642959591044,0.50268138,2445.8,2445.4,2.63727671]
[1642959591442,0.50268138,2445.8,2445.4,26.60727671]
[1642959591841,0.50268138,2445.8,2445.4,1.4635]
[1642959592044,0.50268138,2445.8,2445.4,0.4635]
[1642959592689,0.50268138,2445.8,2445.4,3.89481781]
[1642959592889,0.50268138,2445.8,2445.4,0.4635]
[1642959593188,0.50268138,2445.8,2445.5,1.0]
[1642959593389,0.50268138,2445.8,2445.5,0.3]
[1642959593689,0.50268138,2445.8,2445.4,2.78306513]
[1642959596233,1.1927,2447.1,2445.4,2.61956513]
[1642959596535,1.1927,2447.1,2445.8,1.67150823]
[1642959596735,3.8427,2447.1,2445.8,1.67150823]
[1642959596933,1.1927,2447.1,2445.8,1.97150823]
[1642959597131,0.1927,2447.1,2445.8,1.97150823]
[1642959597534,0.1927,2447.1,2446.6,1.32706644]
[1642959598040,0.1927,2447.1,2445.8,1.97150823]
[1642959598239,0.1927,2447.1,2445.8,2.97150823]
[1642959598437,0.1927,2447.1,2445.8,1.97150823]
[1642959599039,0.1927,2447.1,2446.4,1.44923927]
[1642959600487,0.1927,2447.1,2446.4,2.74963183]
[1642959600693,8.74876885,2447.1,2446.4,2.74963183]
[1642959600888,8.74876885,2447.1,2446.4,1.44923927]
[1642959601887,8.74876885,2447.1,2446.4,2.54803113]
[1642959602494,0.1927,2447.1,2446.4,2.54803113]
[1642959603938,0.591,2447.3,2446.4,2.54803113]
[1642959604142,11.58813962,2447.4,2446.5,4.43759408]
[1642959604143,1.1951,2447.4,2446.5,4.43759408]
[1642959604539,1.1951,2447.4,2446.5,1.0]
[1642959604936,1.1951,2447.4,2447.0,1.44823472]
[1642959605137,1.1951,2447.4,2446.5,4.523989]
[1642959605338,1.1951,2447.4,2446.4,3.04923927]
[1642959605538,1.1951,2447.4,2446.5,1.0]
[1642959605842,1.1951,2447.4,2446.4,1.44923927]
[1642959606238,0.03058,2447.3,2446.4,1.44923927]
[1642959606436,1.20653081,2447.3,2446.4,1.44923927]
[1642959606636,1.20653081,2447.3,2446.4,1.74923927]
[1642959606837,0.03058,2447.3,2446.4,3.04923927]
[1642959607284,3.50482008,2447.3,2446.4,3.04923927]
[1642959607488,3.47424008,2447.3,2446.4,3.04923927]
[1642959607690,3.47649049,2447.3,2446.4,3.04923927]
[1642959608090,0.00225041,2447.3,2446.4,3.04923927]
[1642959608290,3.54689007,2447.3,2446.4,3.04923927]
[1642959608493,3.54689007,2447.3,2446.4,1.44923927]
[1642959608690,0.00225041,2447.3,2446.4,1.44923927]
[1642959608890,3.47456812,2447.3,2446.4,1.44923927]
[1642959609992,3.50514812,2447.3,2445.8,0.27639994]
[1642959610194,1.1927,2447.2,2446.0,0.3]
[1642959610392,4.77090735,2447.1,2445.8,0.27639994]
[1642959611042,4.77090735,2447.1,2446.1,1.33912053]
[1642959611234,6.08489237,2447.1,2446.6,1.44110899]
[1642959611433,4.74032735,2447.1,2446.6,1.44110899]
[1642959611833,1.22328,2447.2,2446.6,1.44110899]
[1642959612035,0.22328,2447.2,2446.6,1.44110899]
[1642959612236,0.03058,2447.2,2446.1,1.33912053]
[1642959612442,0.03058,2447.2,2446.1,1.93912053]
[1642959612937,1.87600485,2447.3,2446.1,1.93912053]
[1642959613542,1.87303385,2447.3,2446.1,1.93912053]
[1642959614341,0.03058,2447.4,2446.9,1.51636899]
[1642959614808,0.03058,2447.4,2447.3,1.0215]
[1642959615004,0.22327,2447.6,2447.3,0.9395]
[1642959615206,0.03057,2447.6,2447.3,0.9395]
[1642959615609,0.07057,2447.8,2447.3,0.9395]
[1642959615805,0.02057,2447.8,2447.4,1.33105259]
[1642959616813,0.02057,2447.8,2447.7,1.30819806]
[1642959617012,0.02057,2447.8,2447.4,1.33105259]
[1642959617212,0.02057,2447.8,2447.5,0.4005]
[1642959617616,0.00212463,2447.7,2447.5,0.4005]
[1642959617812,0.00212463,2447.7,2447.5,0.3185]
[1642959618012,0.00212463,2447.7,2447.5,1.49335102]
[1642959618638,0.00212463,2447.7,2447.5,1.79335102]
[1642959618842,0.00212463,2447.7,2447.5,3.09335102]
[1642959619242,0.00212463,2447.7,2447.5,1.80918017]
[1642959619645,8.6785955,2448.3,2447.6,11.37350112]
[1642959619846,0.04,2448.3,2447.7,0.591]
[1642959620043,0.04,2448.3,2447.8,3.58660106]
[1642959620243,0.03,2448.4,2447.9,8.491]
[1642959620445,2.47495434,2448.4,2448.0,2.0]
[1642959620641,2.47495434,2448.4,2448.1,3.24126459]
[1642959621042,2.47495434,2448.4,2448.2,1.0]
[1642959621242,2.42495434,2448.4,2448.3,0.3]
[1642959621451,2.44495434,2448.4,2448.3,0.3]
[1642959621843,8.6385955,2449.5,2448.9,2.35789237]
[1642959622044,2.44495434,2449.4,2448.9,2.35789237]
[1642959622288,11.08354984,2449.4,2448.5,4.15886043]
[1642959622493,11.08354984,2449.4,2448.5,4.75886043]
[1642959622693,2.44495434,2449.4,2448.6,1.0]
[1642959623097,11.08354984,2449.4,2448.6,1.0]
[1642959623394,1.91828484,2449.3,2448.7,1.62680474]
[1642959623596,1.91828484,2449.3,2448.7,2.14950474]
[1642959624001,1.91828484,2449.3,2448.7,0.2227]
[1642959624203,1.91828484,2449.3,2448.2,2.0]
[1642959624204,2.41098484,2449.3,2448.2,2.0]
[1642959624399,7.33570853,2449.3,2448.2,2.0]
[1642959624599,8.6385955,2449.1,2448.2,2.0]
[1642959624796,1.22956422,2449.0,2448.2,2.0]
[1642959624996,0.44586422,2449.0,2448.2,2.0]
[1642959625598,0.44586422,2449.0,2448.4,1.51261365]
[1642959625801,0.1927,2448.9,2447.8,1.63504176]
[1642959626051,0.1927,2448.9,2447.2,7.5277]
[1642959626242,0.93856422,2448.9,2447.1,2.0]
[1642959626441,0.93856422,2448.9,2447.0,0.09637099]
[1642959626442,6.5543663,2448.8,2447.0,0.09637099]
[1642959626647,1.54543943,2448.7,2447.0,1.09637099]
[1642959626843,6.86460736,2448.6,2447.0,0.08340005]
[1642959627041,1.0,2448.5,2447.0,0.08340005]
[1642959627347,0.03483592,2448.3,2447.2,1.22945924]
[1642959627644,0.03483592,2448.3,2447.0,0.08340005]
[1642959627645,0.3,2447.9,2447.3,0.62462383]
[1642959627844,0.1927,2447.8,2447.3,0.62462383]
[1642959628046,4.71350507,2447.8,2447.3,0.62462383]
[1642959628445,1.0,2447.7,2447.3,0.62462383]
[1642959628646,3.55668306,2447.6,2447.3,0.62462383]
[1642959628845,4.09788115,2447.6,2447.3,0.62462383]
[1642959629151,8.0927,2447.4,2447.3,0.62462383]
[1642959629347,12.79098346,2447.4,2447.3,0.62462383]
[1642959629551,13.79098346,2447.4,2447.3,0.62462383]
[1642959629785,13.21851228,2447.4,2447.3,0.62462383]
[1642959629985,13.15253505,2447.4,2447.3,0.62462383]
[1642959630186,9.44119809,2447.4,2447.3,0.62462383]
[1642959630387,9.0927,2447.4,2447.3,0.62462383]
[1642959630585,9.0927,2447.4,2446.6,1.32097175]
[1642959630586,5.95,2447.3,2446.6,1.32097175]
[1642959630794,3.46993432,2447.2,2446.1,1.58078422]
[1642959630995,4.07285433,2447.6,2446.1,1.64796991]
[1642959631199,1.1699,2448.2,2446.4,0.01266047]
[1642959631494,1.1699,2448.2,2446.5,0.82148569]
[1642959631495,0.00264887,2448.1,2446.5,0.82148569]
[1642959631698,0.00264887,2448.1,2446.6,3.78142542]
[1642959631894,1.1699,2448.2,2447.6,1.40343885]
[1642959632093,0.00264887,2448.5,2447.6,1.40343885]
[1642959632592,1.32680316,2448.4,2447.6,1.40343885]
[1642959632996,4.064912,2448.3,2446.9,0.1633]
[1642959633196,7.387,2448.1,2446.9,0.1633]
[1642959633393,0.591,2448.0,2446.9,0.1633]
[1642959633643,0.67785181,2448.0,2446.9,0.1633]
[1642959633944,1.42417876,2447.2,2446.9,0.1633]
[1642959634351,6.25,2447.1,2446.3,2.944512]
[1642959634547,6.25,2447.1,2446.2,1.63330232]
[1642959634949,1.42417876,2447.2,2446.2,1.63330232]
[1642959635149,1.42417876,2447.2,2446.2,1.58330232]
[1642959636052,1.42417876,2447.2,2446.6,1.21140341]
[1642959637790,0.03709187,2447.1,2446.6,1.21140341]
[1642959638289,0.03709187,2447.1,2446.6,1.16140341]
[1642959638887,0.03709187,2447.1,2446.2,1.38819997]
[1642959639088,0.03709187,2447.1,2446.2,0.68819997]
[1642959639288,0.03709187,2447.1,2446.2,0.08819997]
[1642959640093,0.03709187,2447.1,2446.2,0.00619997]
[1642959640391,0.03709187,2447.1,2446.4,1.28063218]
[1642959640590,0.03709187,2447.1,2446.4,1.23063218]
[1642959640591,1.11179213,2446.8,2446.4,1.23063218]
[1642959641446,0.1633,2447.0,2446.4,1.23063218]
[1642959641844,0.356,2447.0,2446.4,1.23063218]
[1642959642051,0.656,2447.0,2446.4,1.23063218]
[1642959642245,0.656,2447.0,2445.7,0.15054508]
[1642959642645,0.0368526,2446.7,2445.7,0.3]
[1642959642846,0.0368526,2446.7,2445.7,0.25]
[1642959643045,0.0368526,2446.7,2445.7,1.35521023]
[1642959643249,0.2001526,2446.7,2446.5,1.28081167]
[1642959643650,0.0368526,2446.7,2446.5,1.28081167]
[1642959643849,0.0368526,2446.7,2445.7,1.35521023]
[1642959644047,0.0368526,2446.7,2445.7,1.27321023]
[1642959644247,0.0368526,2446.7,2445.7,2.27321023]
[1642959644894,0.0368526,2446.7,2446.5,1.19252361]
[1642959645094,0.0368526,2446.7,2445.7,4.55651792]
[1642959645293,0.0368526,2446.7,2445.6,12.23224508]
[1642959645492,0.2001526,2446.7,2445.7,1.0]
[1642959645694,0.2001526,2446.7,2445.6,12.53224508]
[1642959645895,0.2001526,2446.7,2445.7,3.2524989]
[1642959646094,0.2001526,2446.7,2445.7,2.37534194]
[1642959646294,3.1,2446.6,2445.7,2.2780595]
[1642959646495,3.1,2446.6,2446.4,1.18583956]
[1642959646896,3.1,2446.6,2446.4,1.13583956]
[1642959647094,3.1,2446.6,2446.4,1.05383956]
[1642959647696,3.13679278,2446.6,2446.4,1.05383956]
[1642959647995,3.13679278,2446.6,2445.7,0.82071756]
[1642959649039,0.03679278,2446.6,2446.4,1.19003644]
[1642959649243,0.1927,2446.5,2445.6,12.23224508]
[1642959649446,0.356,2446.5,2445.6,12.23224508]
[1642959649849,0.1633,2446.5,2445.6,12.23224508]
[1642959650250,0.1633,2446.5,2445.9,1.50307889]
[1642959650449,0.1633,2446.5,2445.6,11.89332397]
[1642959650653,0.03679278,2446.6,2445.6,15.13176211]
[1642959650951,0.03679278,2446.6,2445.8,0.01297035]
[1642959651147,0.03679278,2446.6,2445.8,3.25140849]
[1642959651347,0.03679278,2446.6,2446.1,1.23016693]
[1642959651548,0.03679278,2446.6,2446.2,1.55006512]
[1642959651747,1.31464603,2447.0,2445.8,0.01297035]
[1642959651748,1.20143881,2447.0,2445.8,0.01297035]
[1642959652596,0.00194922,2446.5,2445.8,0.01297035]
[1642959652796,0.00194922,2446.5,2446.4,1.25954567]
[1642959652797,0.03673294,2446.5,2446.4,1.25954567]
[1642959653399,0.03673294,2446.5,2445.8,0.31297035]
[1642959653598,0.03673294,2446.5,2445.8,0.01297035]
[1642959654500,0.03673294,2446.5,2446.1,1.51084296]
[1642959654700,0.03673294,2446.5,2446.4,1.22543363]
[1642959655403,0.03673294,2446.5,2445.9,0.3]
[1642959655607,0.03673294,2446.5,2445.8,0.01297035]